Cogmind - Beta 12 X1 @@@ ROGUE MODE // 2022.08.17 @ 12:14:33 Player: Boris Result: Destroyed 0B10! Performance ------------- Evolutions (9) 4500 Regions Visited (21) 4200 Robots Destroyed (136) 680 Value Destroyed (9210) 9210 Prototype IDs (283) 5660 Alien Tech Used (15) 3000 Bonus (66301) 66301 TOTAL SCORE: 93551 Bonus ------- Pacifist 200 Triggered Max Security 2000 High Alert Combat Kills 2005 Follower Combat Kills 412 Found Hidden Lab 3000 Used Core Reset Matrix 3000 Met Sigix 2000 Integrated Exoskeleton 5000 Recovered Sigix Corpse 2000 Escaped with Sigix 5000 Met MAIN.C 5000 Destroyed MAIN.C Shell 5000 Destroyed MAIN.C 10000 Met Architect 300 Destroyed A8 300 Destroyed A6 400 Destroyed A5 500 Destroyed A4 700 Destroyed A3 800 Destroyed A2 1000 Destroyed Architect 15000 Win 3000 Friendly Fire -316 Cogmind --------- Core Integrity 66/1600 Matter 285/300 Energy 749/755 System Corruption 0% Temperature Cool (0) Movement Walking (30) Location Tau Ceti IV Orbit Parts ------- > --- POWER (3) -------- Improved Ion Engine Zero-point Reactor > --- PROPULSION (3) --- Sigix Exoskeleton > --- UTILITY (5) ------ Experimental Core Analyzer Improved Armor Integrity Analyzer Femtoactuators Experimental Reaction Control System AEGIS Remote Shield > --- WEAPON (4) ------- A3's Sniper Rifle Sigix Broadsword Plasma Lance > --- INVENTORY (5) ---- Sigix Sheargun Sigix Containment Pod Sigix Corpse Peak State ------------ > --- POWER ------------ Enhanced Nuclear Core Matter Drive > --- PROPULSION ------- Sigix Exoskeleton > --- UTILITY ---------- Medium Storage Unit Experimental Core Analyzer Experimental Core Analyzer Femtoactuators Experimental System Purifier > --- WEAPON ----------- Sigix Sheargun Sigix Broadsword Lance > --- INVENTORY -------- Experimental Energy Well Advanced Reaction Control System High-powered Transdimensional Reconstructor Sigix Sheargun Sigix Sheargun Sigix Sheargun Core Cannon Sigix Containment Pod [Rating: 283] Favorites ----------- Power Enhanced Nuclear Core Engine Improved Ion Engine Power Core Enhanced Nuclear Core Reactor Zero-point Reactor Propulsion Improved Flight Unit Treads Light Treads Leg Sigix Exoskeleton Flight Unit Improved Flight Unit Utility Hacking Suite Device Advanced Cloaking Device Storage Medium Storage Unit Processor Experimental Core Analyzer Hackware Hacking Suite Protection Hardened Medium Armor Plating Artifact Microwarp Drive Weapon Sigix Broadsword Energy Gun Sigix Sheargun Energy Cannon Core Cannon Ballistic Gun A3's Sniper Rifle Ballistic Cannon Hypervelocity Linear Accelerator Launcher Precision Grenade Launcher Special Weapon Plasma Cutter Impact Weapon Heavy Hammer Slashing Weapon Sigix Broadsword Piercing Weapon Kinetic Spear Build | -11 -10 -9 -9 -9 -7 -6 -6 -5 -4 -4 -4 -4 -4 -3 -3 -2 -2 -2 -1 -1 -1 ------- Run | Scr Mat Mat Sto Rec Fac Fac Ext Fac Fac Was Fac Arm Lab Res Tes Res Qua Sec Acc Com Ac0 Slots Evolved 18 | . . 2 . . 4 2 . 2 2 . . . . 2 . 2 . . 2 . . Power 1 | . . . . . . 1 . . . . . . . . . . . . . . . Propulsion 6 | . . 2 . . 1 1 . . 1 . . . . 1 . . . . . . . Utility 11 | . . . . . 3 . . 2 1 . . . . 1 . 2 . . 2 . . Weapon . | . . . . . . . . . . . . . . . . . . . . . . Parts Attached 259 | 4 . . 9 5 10 14 5 14 2 2 7 6 5 31 56 2 11 21 11 25 19 Power 23 | . . . 2 1 . 2 2 2 . . . . . 1 4 . 3 3 . 2 1 Engine 7 | . . . 2 1 . 2 1 . . . . . . . . . . . . 1 . Core 8 | . . . . . . . 1 2 . . . . . 1 2 . 1 1 . . . Reactor 8 | . . . . . . . . . . . . . . . 2 . 2 2 . 1 1 Propulsion 33 | 2 . . 5 2 2 1 2 5 1 . 3 . . 2 8 . . . . . . Treads 2 | 2 . . . . . . . . . . . . . . . . . . . . . Leg 1 | . . . . . . . . . . . . . . . 1 . . . . . . Wheel . | . . . . . . . . . . . . . . . . . . . . . . Hover . | . . . . . . . . . . . . . . . . . . . . . . Flight 30 | . . . 5 2 2 1 2 5 1 . 3 . . 2 7 . . . . . . Utility 145 | . . . 1 2 6 7 1 5 1 2 2 6 2 27 33 2 7 13 9 14 5 Device 102 | . . . 1 . 4 3 . 3 . 1 1 5 1 20 27 1 6 8 5 11 5 Storage 4 | . . . . . . . . . . . . . 1 . 1 . . 1 . 1 . Processor 14 | . . . . . 1 2 . . 1 . . 1 . . 1 . . 2 4 2 . Hackware 12 | . . . . 2 . 2 . 2 . . . . . 4 1 1 . . . . . Protection 11 | . . . . . 1 . 1 . . 1 1 . . 3 3 . 1 . . . . Artifact 2 | . . . . . . . . . . . . . . . . . . 2 . . . Weapon 58 | 2 . . 1 . 2 4 . 2 . . 2 . 3 1 11 . 1 5 2 9 13 Energy Gun 13 | . . . . . . . . . . . . . 1 . . . . 3 1 5 3 Energy Cannon 3 | . . . . . . . . . . . 1 . 1 . . . . . . . 1 Ballistic Gun 3 | 2 . . . . . . . . . . . . . . . . . . . . 1 Ballistic Cannon 1 | . . . . . . . . . . . . . . . . . . . . . 1 Launcher 5 | . . . . . . 1 . . . . . . . 1 3 . . . . . . Special Weapon 1 | . . . . . . . . . . . . . . . 1 . . . . . . Impact Weapon 1 | . . . 1 . . . . . . . . . . . . . . . . . . Slashing Weapon 20 | . . . . . 1 2 . 1 . . . . . . 6 . 1 2 . 2 5 Piercing Weapon 11 | . . . . . 1 1 . 1 . . 1 . 1 . 1 . . . 1 2 2 Special Melee Weapon . | . . . . . . . . . . . . . . . . . . . . . . Unidentified Prototypes 39 | . . . 3 . . 2 1 4 . . 2 . 3 1 11 1 1 2 2 1 5 Corrupted Parts 2 | . . . . 2 . . . . . . . . . . . . . . . . . System Corruption 6 | . . . . 6 . . . . . . . . . . . . . . . . . Parts Lost 15 | . . . 4 . . . 5 . . . 2 . . 3 1 . . . . . . Power 2 | . . . . . . . 2 . . . . . . . . . . . . . . Propulsion 7 | . . . 2 . . . 2 . . . 1 . . 1 1 . . . . . . Utility 4 | . . . . . . . 1 . . . 1 . . 2 . . . . . . . Weapon 2 | . . . 2 . . . . . . . . . . . . . . . . . . Highest Loss Streak 4 | . . . 4 . . . 3 . . . 1 . . 1 1 . . . . . . To Critical Strikes . | . . . . . . . . . . . . . . . . . . . . . . Average Slot Usage (%) 78 | . 57 44 35 78 86 85 85 88 99 100 96 100 98 85 90 90 87 73 65 61 72 Engine 1 | . . . . 11 7 6 3 8 . . . . . . . . . . . . 6 Core 3 | . . . . . . . . 1 10 10 10 10 10 8 4 4 4 5 6 1 . Reactor 2 | . . . . . . . . . . . . . . . 3 4 4 3 6 6 5 Leg 2 | . . . . . . . . . . . . . . . . . . 2 6 6 6 Flight 17 | . . . 5 44 33 33 35 27 36 36 34 36 35 30 27 25 25 15 . . . Device 12 | . . . 3 . 6 7 6 8 10 12 14 18 20 12 11 15 17 14 8 12 20 Storage 2 | . . . . . . . . . . . . . . 4 4 4 4 5 6 5 . Processor 7 | . . . . . 5 10 6 5 9 8 5 7 5 4 4 4 4 3 13 11 13 Hackware 9 | . . . . 12 15 13 13 22 21 17 15 15 15 18 18 20 18 9 . . . Energy Gun 1 | . . . . . . . . . . . . . . . . . . 6 3 4 . Slashing Weapon 5 | . . . . . 2 6 6 5 5 5 5 5 3 . 8 8 8 5 6 6 10 Piercing Weapon 3 | . . . . . 2 5 6 5 5 5 5 5 5 4 4 4 . . 5 3 6 Naked Turns . | . . . . . . . . . . . . . . . . . . . . . . Heaviest Build 69 | 3 3 3 11 11 21 21 24 23 23 33 33 33 37 44 63 44 51 63 59 69 60 Greatest Support 100 | 20 3 3 20 20 26 25 31 34 40 40 50 41 41 59 100 63 63 63 60 60 60 Greatest Overweight (x) 2 | . . . 2 . . . . . 1 . . . 1 . 1 . . 1 . 1 . Average Overweight (x) . | . . . . . . . . . . . . . . . . . . . . . . Largest Inventory Capacity 10 | 5 5 5 5 5 5 5 5 5 5 5 5 5 10 10 10 10 10 10 10 10 5 Average Capacity 7 | 5 5 5 5 5 5 5 5 5 5 5 5 5 5 10 10 10 10 9 10 9 5 Most Carried 10 | 1 2 3 4 5 5 5 5 5 5 5 5 5 10 10 10 9 10 10 10 10 5 Average Carried 7 | . 1 2 2 3 4 4 4 3 4 5 4 4 2 9 9 8 9 9 9 9 4 Final Capacity 10 | 5 5 5 5 5 5 5 5 5 5 5 5 5 10 10 10 10 10 10 10 5 5 Final Carried 10 | 1 2 3 2 5 5 4 5 5 5 5 4 5 10 10 10 8 10 10 10 5 4 Class Distribution -------------------- 38% | Alien-Sigix 24% | Hacker-Sprinter 13% | Wizard-Ninja 11% | Hacker-Ninja 5% | Sprinter 3% | Mutant Dominant Class ---------------- Mutant | -10/Materials Mutant | -9/Materials Mutant | -9/Storage Sprinter | -9/Recycling Sprinter | -7/Factory Sprinter | -6/Factory Hacker-Mutant | -6/Extension Hacker-Sprinter | -5/Factory Hacker-Sprinter | -4/Factory Hacker-Sprinter | -4/Waste Hacker-Sprinter | -4/Factory Hacker-Sprinter | -4/Armory Hacker-Sprinter | -4/Lab Hacker-Ninja | -3/Research Hacker-Ninja | -3/Testing Wizard-Ninja | -2/Research Wizard-Ninja | -2/Quarantine Wizard-Ninja | -2/Section 7 Alien-Sigix | -1/Access Alien-Sigix | -1/Command Alien-Sigix | -1/Access_0 Resources | -11 -10 -9 -9 -9 -7 -6 -6 -5 -4 -4 -4 -4 -4 -3 -3 -2 -2 -2 -1 -1 -1 ----------- Run | Scr Mat Mat Sto Rec Fac Fac Ext Fac Fac Was Fac Arm Lab Res Tes Res Qua Sec Acc Com Ac0 Matter Collected 3246 | 105 . . 145 110 49 151 60 157 . 43 50 57 . 401 1169 20 109 208 77 155 180 Remotely . | . . . . . . . . . . . . . . . . . . . . . . Salvage Created 11885 | . . . 53 156 64 680 20 364 . . 253 57 . 615 1394 154 501 577 558 1865 4574 Parts 577 | . . . . . 4 18 2 12 . . 8 7 . 27 64 6 29 32 35 76 257 Haulers Intercepted 17 | . . . 1 . . 5 . 3 . . 2 . . 2 1 1 . . 2 . . Recyclers Shooed 1 | . . . . . . . . 1 . . . . . . . . . . . . . Parts Field Recycled . | . . . . . . . . . . . . . . . . . . . . . . Retrieved Matter . | . . . . . . . . . . . . . . . . . . . . . . Parts Self-Destructed . | . . . . . . . . . . . . . . . . . . . . . . Prevented . | . . . . . . . . . . . . . . . . . . . . . . Kills | -11 -10 -9 -9 -9 -7 -6 -6 -5 -4 -4 -4 -4 -4 -3 -3 -2 -2 -2 -1 -1 -1 ------- Run | Scr Mat Mat Sto Rec Fac Fac Ext Fac Fac Was Fac Arm Lab Res Tes Res Qua Sec Acc Com Ac0 Combat Hostiles Destroyed 82 | . . . . . . . . . . . . . . . 8 . 2 4 5 15 48 Melee 72 | . . . . . . . . . . . . . . . 7 . 2 2 5 12 44 Guns 8 | . . . . . . . . . . . . . . . . . . 2 . 3 3 Cannons 1 | . . . . . . . . . . . . . . . . . . . . . 1 AOE 1 | . . . . . . . . . . . . . . . 1 . . . . . . Classes Destroyed 18 | . . . 1 1 2 1 1 1 . . . . . . 5 . . 2 1 2 1 Worker 1 | . . . . . . . . . . . . . . . 1 . . . . . . Builder 8 | . . . . . 3 . . . . . . . . 3 . . . . 2 . . Tunneler 2 | . . . . . . . . 1 . . . . . 1 . . . . . . . Hauler 17 | . . . 1 . . 5 . 3 . . 2 . . 2 1 1 . . 2 . . Recycler 5 | . . . . 2 . 1 . . . . . . . 1 1 . . . . . . Mechanic 2 | . . . . . . 1 . . . . . . . . 1 . . . . . . Operator 6 | . . . . . . . 1 1 . . . 1 . 2 . . . 1 . . . Watcher 11 | . . . . . 1 . . . . . 1 1 . 3 3 1 1 . . . . Swarmer 3 | . . . . . . . . . . . . . . . 1 . . . 2 . . Grunt 5 | . . . . . . . . . . . . . . . 4 . . . . 1 . Researcher 12 | . . . . . . . . . . . . . . . 6 . 4 2 . . . Sentry 9 | . . . . . . . . . . . . . . . 3 . 2 1 1 2 . Programmer 6 | . . . . . . . . . . . . . . . . . . . 2 4 . Heavy 1 | . . . . . . . . . . . . . . . . . . . . 1 . M Shell/Atk 3 | . . . . . . . . . . . . . . . . . . . . 3 . M Shell/Def 2 | . . . . . . . . . . . . . . . . . . . . 2 . Enhanced Grunt 31 | . . . . . . . . . . . . . . . . . . . . . 31 Enhanced Sentry 2 | . . . . . . . . . . . . . . . . . . . . . 2 Enhanced Hunter 8 | . . . . . . . . . . . . . . . . . . . . . 8 Striker 2 | . . . . . . . . . . . . . . . . . . 2 . . . Executioner 2 | . . . . . . . . . . . . . . . . . . 2 . . . Best Kill Streak 11 | . . . 1 1 3 2 1 2 . . 2 1 . 2 5 1 2 2 3 5 11 Combat Bots Only 11 | . . . . . . . . . . . . . . . 4 . 2 2 3 5 11 Max Kills in Single Turn 2 | . . . 1 1 1 1 1 1 . . 1 1 . 1 1 1 1 2 1 1 1 Gunslinging . | . . . . . . . . . . . . . . . . . . . . . . Exploded 1 | . . . . . . . . . . . . . . . 1 . . . . . . Melee 1 | . . . . . . . . . . . . . . . 1 . 1 1 1 1 1 Uniques/NPCs Destroyed 9 | . . . . . . . . . . . . . . . . . . . . 2 7 MAIN.C Shell (-1/Command) MAIN.C (-1/Command) A8 (-1/Access_0) A6 (-1/Access_0) A2 (-1/Access_0) Architect (-1/Access_0) A5 (-1/Access_0) A4 (-1/Access_0) A3 (-1/Access_0) Combat | -11 -10 -9 -9 -9 -7 -6 -6 -5 -4 -4 -4 -4 -4 -3 -3 -2 -2 -2 -1 -1 -1 -------- Run | Scr Mat Mat Sto Rec Fac Fac Ext Fac Fac Was Fac Arm Lab Res Tes Res Qua Sec Acc Com Ac0 Damage Taken 8595 | . 67 196 383 . 19 . 859 17 46 . 456 . . 315 490 24 144 1270 405 1520 2384 Core 2516 | . . 69 81 . . . 227 . 22 . 175 . . 45 103 . . 531 122 421 720 Absorbed by Shields 2293 | . . . . . . . . . . . . . . . . . . . . 202 2091 Regen/Repaired (Parts) 860 | . . . . . . . . 72 . . 196 . . 69 . . . 292 14 174 43 Core Remaining (%) 75 | 100 100 . . 62 100 . 73 100 . . . . 82 . 88 . . 42 . . 4 Volleys Fired 84 | . . . . . . . . . . . . . . 4 11 . . 15 12 22 20 Largest 4 | . . . . . . . . . . . . . . 1 1 . . 4 1 4 1 Hottest 400 | . . . . . . . . . . . . . . 36 36 . . 400 100 400 300 Shots Fired 122 | . . . . . . . . . . . . . . 4 11 . . 30 12 45 20 Gun 105 | . . . . . . . . . . . . . . . . . . 30 12 45 18 Cannon 2 | . . . . . . . . . . . . . . . . . . . . . 2 Launcher 7 | . . . . . . . . . . . . . . 4 3 . . . . . . Special 8 | . . . . . . . . . . . . . . . 8 . . . . . . Kinetic 16 | . . . . . . . . . . . . . . . . . . . . . 16 Thermal 10 | . . . . . . . . . . . . . . . 8 . . . . . 2 Explosive 7 | . . . . . . . . . . . . . . 4 3 . . . . . . Electromagnetic . | . . . . . . . . . . . . . . . . . . . . . . Slashing 89 | . . . . . . . . . . . . . . . . . . 30 12 45 2 Robot Hit Streak 13 | . . . . . . . . . . . . . . . 6 . . 8 . 4 13 Robot Miss Streak 4 | . . . . . . . . . . . . . . . 1 . . 2 . 4 1 Penetration Max 1 | . . . . . . . . . . . . . . . . . . 1 . . 1 Secondary Targets . | . . . . . . . . . . . . . . . . . . . . . . Shots Hit Robots 456 | . . . 1 3 5 19 3 13 1 . 3 2 . 24 75 6 16 21 13 62 189 Core Hits 211 | . . . . . 1 8 1 5 . . 2 2 . 11 30 3 8 11 11 31 87 Critical Kills . | . . . . . . . . . . . . . . . . . . . . . . Critical Parts Destroyed 4 | . . . . 1 . . . . . . . . . . . . . . . . 3 Critical Strikes 32 | . . . . 1 . 2 . 1 . . 2 . . 1 5 1 . . . 2 17 Destroy 3 | . . . . . . . . . . . . . . . . . . . . . 3 Smash 1 | . . . . 1 . . . . . . . . . . . . . . . . . Sever 16 | . . . . . . 1 . . . . . . . . 5 1 . . . 1 8 Impale 12 | . . . . . . 1 . 1 . . 2 . . 1 . . . . . 1 6 Melee Attacks 769 | . . . 2 6 7 33 5 25 6 . 5 29 53 46 102 7 41 36 49 71 246 Impact 11 | . . . 2 6 3 . . . . . . . . . . . . . . . . Slashing 497 | . . . . . . 7 3 5 1 . . 8 8 . 85 6 37 36 37 60 204 Piercing 261 | . . . . . 4 26 2 20 5 . 5 21 45 46 17 1 4 . 12 11 42 Sneak Attacks 62 | . . . 1 2 3 9 . 6 1 . 2 1 . 9 13 1 4 5 5 . . Combat Hostiles 1 | . . . . . . . . . . . . . . . . . . 1 . . . Follow-up Attacks 106 | . . . . . . 5 . 3 . . . . . . 19 1 3 . 5 8 62 Damage Inflicted 47120 | . . . 63 202 291 1049 124 801 117 . 282 177 . 1941 4725 382 1500 2626 2267 7935 22638 Guns 2691 | . . . . . . . . . . . . . . . . . . 953 . 890 848 Cannons 1100 | . . . . . . . . . . . . . . . . . . . . . 1100 Explosions 223 | . . . . . . . . . . . . . . . 223 . . . . . . Melee 43033 | . . . 63 202 291 1049 124 801 117 . 282 177 . 1941 4429 382 1500 1673 2267 7045 20690 Ramming . | . . . . . . . . . . . . . . . . . . . . . . Kinetic 848 | . . . . . . . . . . . . . . . . . . . . . 848 Thermal 1173 | . . . . . . . . . . . . . . . 73 . . . . . 1100 Explosive 223 | . . . . . . . . . . . . . . . 223 . . . . . . Electromagnetic . | . . . . . . . . . . . . . . . . . . . . . . Impact 447 | . . . 63 202 182 . . . . . . . . . . . . . . . . Slashing 37937 | . . . . . . 221 99 183 . . . 115 . . 3918 348 1381 2626 2073 7663 19310 Piercing 6492 | . . . . . 109 828 25 618 117 . 282 62 . 1941 511 34 119 . 194 272 1380 Highest Corruption 20 | . . . . 6 . . . . . . 1 1 1 16 20 . 1 2 2 5 . Average Corruption 5 | . . . . 5 . . . . . . 1 1 1 13 16 . 1 1 1 1 . Corruption Purged 6 | . . . . . . . . . . . . . . . . . . . . 6 . Corruption Blocked . | . . . . . . . . . . . . . . . . . . . . . . Effects 88 | . . . . 2 . . . . . . 1 . 5 25 31 . 4 14 . 6 . Message Errors 25 | . . . . 1 . . . . . . . . 1 7 7 . . 5 . 4 . Matter Fused 21 | . . . . . . . . . . . 1 . 1 5 9 . 2 3 . . . Heat Flow Errors 6 | . . . . . . . . . . . . . . 1 2 . 1 2 . . . Energy Discharges 7 | . . . . . . . . . . . . . 2 1 3 . . 1 . . . Parts Rejected 3 | . . . . . . . . . . . . . . 2 1 . . . . . . Data Loss (minor) 10 | . . . . . . . . . . . . . 1 3 3 . . 2 . 1 . Data Loss (major) 4 | . . . . 1 . . . . . . . . . 2 1 . . . . . . Misfires 1 | . . . . . . . . . . . . . . . . . . . . 1 . Alerts 3 | . . . . . . . . . . . . . . . 1 . 1 1 . . . Misdirections 8 | . . . . . . . . . . . . . . 4 4 . . . . . . Overload Shots . | . . . . . . . . . . . . . . . . . . . . . . Overflow Damage 5911 | . . . 41 75 134 35 8 185 87 . 72 . . 246 613 . 241 245 135 573 3221 Projectiles 440 | . . . . . . . . . . . . . . . . . . . . . 440 Explosions . | . . . . . . . . . . . . . . . . . . . . . . Melee 5471 | . . . 41 75 134 35 8 185 87 . 72 . . 246 613 . 241 245 135 573 2781 Knockbacks 3 | . . . . 2 1 . . . . . . . . . . . . . . . . Impact 3 | . . . . 2 1 . . . . . . . . . . . . . . . . Kinetic . | . . . . . . . . . . . . . . . . . . . . . . Secondary . | . . . . . . . . . . . . . . . . . . . . . . Self-Inflicted Damage 67 | . . . . . . . . . . . . . . . . . . . 67 . . Shots 1 | . . . . . . . . . . . . . . . . . . . 1 . . Rammed . | . . . . . . . . . . . . . . . . . . . . . . Targets Rammed . | . . . . . . . . . . . . . . . . . . . . . . Kicked . | . . . . . . . . . . . . . . . . . . . . . . Crushed . | . . . . . . . . . . . . . . . . . . . . . . Highest Temperature 440 | . . . 2 . 9 . 43 . 98 150 127 . 7 156 149 . 164 195 . 440 . Average Temperature 50 | . . . 2 . 5 . 14 . 49 82 127 . 4 30 25 . 87 60 . 184 . Received Heat Transfer 1068 | . 39 54 153 . 9 . 237 . 46 . 9 . . 9 96 . 27 27 36 117 209 Effects 2 | . . . . . . . . . . . . . . . . . . . . 2 . Shutdowns 1 | . . . . . . . . . . . . . . . . . . . . 1 . Short Circuit 1 | . . . . . . . . . . . . . . . . . . . . 1 . Siege Activations . | . . . . . . . . . . . . . . . . . . . . . . Robots Corrupted . | . . . . . . . . . . . . . . . . . . . . . . Combat Hostiles . | . . . . . . . . . . . . . . . . . . . . . . Parts Fried 12 | . . . 2 2 8 . . . . . . . . . . . . . . . . Impact Corruptions 9 | . . . 1 3 5 . . . . . . . . . . . . . . . . Robots Melted . | . . . . . . . . . . . . . . . . . . . . . . Combat Hostiles . | . . . . . . . . . . . . . . . . . . . . . . Parts Melted . | . . . . . . . . . . . . . . . . . . . . . . Heat Transferred 259 | . . . . . . . . . . . . . . . 259 . . . . . . Parts Sabotaged . | . . . . . . . . . . . . . . . . . . . . . . Parts Stolen . | . . . . . . . . . . . . . . . . . . . . . . Parts Stripped . | . . . . . . . . . . . . . . . . . . . . . . Power Chain Reactions . | . . . . . . . . . . . . . . . . . . . . . . Missiles Intercepted . | . . . . . . . . . . . . . . . . . . . . . . Alert | -11 -10 -9 -9 -9 -7 -6 -6 -5 -4 -4 -4 -4 -4 -3 -3 -2 -2 -2 -1 -1 -1 ------- Run | Scr Mat Mat Sto Rec Fac Fac Ext Fac Fac Was Fac Arm Lab Res Tes Res Qua Sec Acc Com Ac0 Peak Influence 2060 | . 40 98 182 265 1032 692 296 246 75 26 196 230 . 235 308 314 419 1740 2060 1411 . Initial 1305 | . . 16 40 76 988 505 276 121 . 26 18 102 . . 32 173 176 . 1100 1305 . Average 393 | . 9 39 37 173 1016 584 238 149 30 26 92 153 . 82 135 241 154 397 1490 1327 . Maximum Alert Level 5 | . . . . 1 3 2 1 1 . . . 1 . 1 1 1 2 5 5 5 . Low Security (%) 47 | 100 100 100 100 76 . . 3 81 100 100 100 91 . 98 73 22 70 39 . . . Level 1 17 | . . . . 23 . . 96 18 . . . 8 . 1 26 77 23 48 . . . Level 2 5 | . . . . . . 100 . . . . . . . . . . 6 . . . . Level 3 1 | . . . . . 100 . . . . . . . . . . . . . . . . Level 4 13 | . . . . . . . . . . . . . . . . . . . 42 56 . Level 5 7 | . . . . . . . . . . . . . . . . . . . . 43 . High Security . | . . . . . . . . . . . . . . . . . . . . . . Max Security 6 | . . . . . . . . . . . . . . . . . . 12 57 . . Squads Dispatched 77 | . 1 . 4 . 2 4 2 3 2 . . 3 . 6 5 1 1 17 24 2 . Investigation 18 | . 1 . 4 . 1 3 . 3 . . . 1 . 2 1 1 . . 1 . . Extermination 4 | . . . . . . . . . . . . 1 . 1 . . 1 1 . . . Reinforcement 23 | . . . . . 1 1 2 . 2 . . 1 . 3 4 . . 4 3 2 . Assault 32 | . . . . . . . . . . . . . . . . . . 12 20 . . Garrison . | . . . . . . . . . . . . . . . . . . . . . . Intercept . | . . . . . . . . . . . . . . . . . . . . . . Searches Triggered . | . . . . . . . . . . . . . . . . . . . . . . Construction Impeded 2 | . . . . . 1 . 1 . . . . . . . . . . . . . . Haulers Reinforced 4 | . . . . . . 1 . . . . . . . 2 1 . . . . . . Active Scanning Responses . | . . . . . . . . . . . . . . . . . . . . . . Cargo Convoy Interrupts . | . . . . . . . . . . . . . . . . . . . . . . Stealth | -11 -10 -9 -9 -9 -7 -6 -6 -5 -4 -4 -4 -4 -4 -3 -3 -2 -2 -2 -1 -1 -1 --------- Run | Scr Mat Mat Sto Rec Fac Fac Ext Fac Fac Was Fac Arm Lab Res Tes Res Qua Sec Acc Com Ac0 Distress Signals 45 | . 1 1 1 . . 2 3 1 1 . . . . 1 1 . . 5 3 25 . Communications Jammed 36 | . . . . . . . . . . . 8 4 . . 6 . 1 17 . . . Distress Signals 36 | . . . . . . . . . . . 8 4 . . 6 . 1 17 . . . Times Spotted 387 | . 5 13 19 7 7 7 23 12 8 . 18 5 . 26 14 3 9 81 39 34 57 Peak Tracking Total 26 | . 5 14 15 7 6 5 17 7 9 . 13 2 . 11 5 2 2 25 26 15 15 Tactical Retreats 38 | . . 1 3 . . 2 2 2 . . 2 . . 2 . . 1 11 9 1 2 Traps | -11 -10 -9 -9 -9 -7 -6 -6 -5 -4 -4 -4 -4 -4 -3 -3 -2 -2 -2 -1 -1 -1 ------- Run | Scr Mat Mat Sto Rec Fac Fac Ext Fac Fac Was Fac Arm Lab Res Tes Res Qua Sec Acc Com Ac0 Traps Triggered 19 | . 1 . . . . 1 . . 1 . 1 . . 4 . 2 2 1 5 1 . Indirectly . | . . . . . . . . . . . . . . . . . . . . . . Trap Hack Attempts . | . . . . . . . . . . . . . . . . . . . . . . Triggered . | . . . . . . . . . . . . . . . . . . . . . . Disarmed 5 | . . . . . . . . . . . . . . 5 . . . . . . . Reprogrammed 15 | . . . . . . . . . . . . . . . 1 . 14 . . . . Reused 2 | . . . . . . . . . . . . . . . . . 2 . . . . Traps Extracted . | . . . . . . . . . . . . . . . . . . . . . . Installed . | . . . . . . . . . . . . . . . . . . . . . . Triggered 2 | . . . . . . . . . . . . . . . . . 2 . . . . Machines | -11 -10 -9 -9 -9 -7 -6 -6 -5 -4 -4 -4 -4 -4 -3 -3 -2 -2 -2 -1 -1 -1 ---------- Run | Scr Mat Mat Sto Rec Fac Fac Ext Fac Fac Was Fac Arm Lab Res Tes Res Qua Sec Acc Com Ac0 Machines Disabled 48 | . . . 1 . . . . . . . . 4 7 . 5 . 6 14 2 3 6 Max in Single Turn 1 | . . . 1 . . . . . . . . 1 1 . 1 . 1 1 1 1 1 Garrison Access 4 | . . . . . . 1 . . . . 1 . . . 1 . 1 . . . . Energy Cycler 2 | . . . . . . . 2 . . . . . . . . . . . . . . Machines Sabotaged . | . . . . . . . . . . . . . . . . . . . . . . Garrisons Compromised . | . . . . . . . . . . . . . . . . . . . . . . Overloaded Fab Kills . | . . . . . . . . . . . . . . . . . . . . . . Hacking | -11 -10 -9 -9 -9 -7 -6 -6 -5 -4 -4 -4 -4 -4 -3 -3 -2 -2 -2 -1 -1 -1 --------- Run | Scr Mat Mat Sto Rec Fac Fac Ext Fac Fac Was Fac Arm Lab Res Tes Res Qua Sec Acc Com Ac0 Machines Accessed 111 | . 3 1 7 11 2 6 2 8 2 . 5 12 . 10 12 2 10 12 3 2 1 Terminals 79 | . 3 1 7 6 1 3 2 5 2 . 1 7 . 6 8 2 9 12 2 2 . Fabricators 12 | . . . . . 1 2 . 1 . . . 5 . 1 2 . . . . . . Repair Stations 5 | . . . . . . . . 1 . . 3 . . 1 . . . . . . . Recycling Units 6 | . . . . 5 . . . . . . . . . 1 . . . . . . . Scanalyzers 2 | . . . . . . . . . . . . . . 1 1 . . . . . . Garrison Access 6 | . . . . . . 1 . 1 . . 1 . . . 1 . 1 . 1 . . Total Hacks 497 | . 11 5 21 47 7 22 3 38 18 . 14 44 . 41 63 15 48 75 6 3 16 Successful 257 | . 3 3 6 24 2 6 2 24 9 . 9 30 . 22 36 3 27 34 1 . 16 Failed 239 | . 8 2 15 23 5 16 1 14 9 . 5 13 . 19 27 12 21 41 5 3 . Catastrophic 46 | . 2 . 3 1 . 5 . 3 2 . . 1 . 2 5 4 6 8 2 2 . Database Lockouts 1 | . . . . . . . . . . . . 1 . . . . . . . . . Manual 265 | . 12 3 11 24 4 3 . 21 19 . 5 29 . 22 37 10 17 41 3 3 1 Terminals 393 | . 11 5 21 32 3 12 3 21 18 . 5 35 . 32 51 15 47 75 4 3 . Fabricators 35 | . . . . . 4 6 . 6 . . . 9 . 4 6 . . . . . . Repair Stations 18 | . . . . . . . . 8 . . 8 . . 2 . . . . . . . Recycling Units 17 | . . . . 15 . . . . . . . . . 2 . . . . . . . Scanalyzers 5 | . . . . . . . . . . . . . . 1 4 . . . . . . Garrison Access 13 | . . . . . . 4 . 3 . . 1 . . . 2 . 1 . 2 . . Terminal Hacks 152 | . 1 2 5 10 2 3 2 9 7 . 1 15 . 11 20 2 22 24 . . 16 Record 18 | . . . . . . . . . . . . . . . . . 2 . . . 16 Part Schematic 1 | . . . . 1 . . . . . . . . . . . . . . . . . Robot Schematic 3 | . . . . 1 . . . 1 1 . . . . . . . . . . . . Robot Analysis 2 | . . . . . . . . . . . . 1 . . . . 1 . . . . Prototype ID Bank 9 | . . . 1 5 1 . . . . . . 1 . . . . . 1 . . . Open Door 6 | . . . 1 . . . 2 . . . . . . . . . 1 2 . . . Level Access Points 3 | . . . . . . . . 1 . . . . . . 1 . . 1 . . . Branch Access Points 6 | . . 1 1 . . . . . 1 . 1 . . 1 . 1 . . . . . Emergency Access Points 2 | . . . . . . . . . . . . 1 . . . . . 1 . . . Terminal Index 3 | . . . . . . . . 1 . . . . . 1 . . . 1 . . . Garrison Index 1 | . . . . . . . . . . . . . . . . . . 1 . . . Alert Level 19 | . . 1 . 1 . 1 . 2 1 . . 3 . 1 3 1 2 3 . . . Unreport Threat 19 | . . . 1 1 . 1 . 2 . . . 1 . 4 3 . 4 2 . . . Locate Traps 12 | . . . . . 1 1 . 1 . . . 1 . 1 2 . 3 2 . . . Disarm Traps 1 | . . . . . . . . . . . . . . 1 . . . . . . . Reprogram Traps 5 | . . . . . . . . . . . . . . . 1 . 4 . . . . Maintenance Status 3 | . . . . . . . . . 1 . . 1 . 1 . . . . . . . Transport Status 2 | . . . . . . . . . . . . . . . 1 . 1 . . . . Recall Investigation 1 | . . . . . . . . . . . . . . . . . . 1 . . . Recall Extermination 1 | . . . . . . . . . . . . . . . . . . 1 . . . Recall Reinforcements 4 | . . . . . . . . . 2 . . 1 . . . . . 1 . . . Hauler Manifests 6 | . 1 . . 1 . . . . 1 . . . . . 2 . . 1 . . . Registered Components 1 | . . . . . . . . . . . . 1 . . . . . . . . . Zone Layout 23 | . . . 1 . . . . 1 . . . 4 . 1 6 . 4 6 . . . Protovariant Controls 1 | . . . . . . . . . . . . . . . 1 . . . . . . Fabricator Hacks 5 | . . . . . . 2 . 1 . . . 1 . . 1 . . . . . . Network Status 4 | . . . . . . 1 . 1 . . . 1 . . 1 . . . . . . Load Schematic 1 | . . . . . . 1 . . . . . . . . . . . . . . . Repair Station Hacks 15 | . . . . . . . . 7 . . 6 . . 2 . . . . . . . Scan Component 7 | . . . . . . . . 3 . . 3 . . 1 . . . . . . . Repair 7 | . . . . . . . . 3 . . 3 . . 1 . . . . . . . Refit 1 | . . . . . . . . 1 . . . . . . . . . . . . . Recycling Unit Hacks 6 | . . . . 5 . . . . . . . . . 1 . . . . . . . Retrieve Components 6 | . . . . 5 . . . . . . . . . 1 . . . . . . . Scanalyzer 3 | . . . . . . . . . . . . . . 1 2 . . . . . . Insert Component 3 | . . . . . . . . . . . . . . 1 2 . . . . . . Garrison Access Hacks 4 | . . . . . . 1 . . . . 1 . . . 1 . 1 . . . . Seal Access 4 | . . . . . . 1 . . . . 1 . . . 1 . 1 . . . . Unauthorized Hacks 72 | . 2 1 1 9 . . . 7 2 . 1 14 . 7 12 1 4 10 1 . . Terminals 51 | . 2 1 1 4 . . . 2 2 . 1 8 . 5 9 1 4 10 1 . . Track 10 | . . . . . . . . . . . . 2 . 1 1 . 2 4 . . . Assimilate 10 | . . . 1 . . . . . . . . 2 . 2 4 . 1 . . . . Botnet 24 | . 2 1 . 3 . . . 1 2 . 1 2 . 2 3 1 1 4 1 . . Disrupt 3 | . . . . . . . . . . . . 1 . . 1 . . 1 . . . Operators 3 | . . . . . . . . 1 . . . 1 . . . . . 1 . . . Search 1 | . . . . 1 . . . . . . . . . . . . . . . . . Fabricators 14 | . . . . . . . . 4 . . . 6 . 2 2 . . . . . . Report 2 | . . . . . . . . 1 . . . 1 . . . . . . . . . Prioritize 1 | . . . . . . . . 1 . . . . . . . . . . . . . Liberate 1 | . . . . . . . . 1 . . . . . . . . . . . . . Fabnet 9 | . . . . . . . . 1 . . . 5 . 1 2 . . . . . . Overload 1 | . . . . . . . . . . . . . . 1 . . . . . . . Repair Stations 1 | . . . . . . . . 1 . . . . . . . . . . . . . Mechanics 1 | . . . . . . . . 1 . . . . . . . . . . . . . Recycling Units 5 | . . . . 5 . . . . . . . . . . . . . . . . . Tunnel 5 | . . . . 5 . . . . . . . . . . . . . . . . . Scanalyzers 1 | . . . . . . . . . . . . . . . 1 . . . . . . Researchers 1 | . . . . . . . . . . . . . . . 1 . . . . . . Garrison Access . | . . . . . . . . . . . . . . . . . . . . . . Data Cores Recovered 4 | . . . . . . . . . . . . . . 2 1 . . 1 . . . Used 2 | . . . . . . . . . . . . . . . 1 . . 1 . . . Hacking Detections 82 | . 3 1 7 8 2 6 . 8 1 . 4 8 . 8 9 2 4 6 3 2 . Full Trace Events 24 | . 3 . 4 5 1 3 . 3 . . . 1 . 1 1 1 . . 1 . . Feedback Events 1 | . . . . . . . . . . . . . . 1 . . . . . . . Hackware Fried 1 | . . . . . . . . . . . . . . 1 . . . . . . . Feedback Blocked . | . . . . . . . . . . . . . . . . . . . . . . Robot Schematics Acquired 14 | . . . . 1 . . . 1 1 . . . . . 6 . 5 . . . . Robots Built . | . . . . . . . . . . . . . . . . . . . . . . Authchips . | . . . . . . . . . . . . . . . . . . . . . . Time . | . . . . . . . . . . . . . . . . . . . . . . Total Robot Build Rating . | . . . . . . . . . . . . . . . . . . . . . . Part Schematics Acquired 40 | . . . . 1 . . . . . . . . . . 23 . 10 6 . . . Parts Built . | . . . . . . . . . . . . . . . . . . . . . . Authchips . | . . . . . . . . . . . . . . . . . . . . . . Time . | . . . . . . . . . . . . . . . . . . . . . . Total Part Build Rating . | . . . . . . . . . . . . . . . . . . . . . . Parts Repaired 7 | . . . . . . . . 3 . . 3 . . 1 . . . . . . . Time 319 | . . . . . . . . 152 . . 132 . . 35 . . . . . . . Parts Recycled . | . . . . . . . . . . . . . . . . . . . . . . Recycled Matter . | . . . . . . . . . . . . . . . . . . . . . . Retrieved Matter . | . . . . . . . . . . . . . . . . . . . . . . Retrieved Components 14 | . . . . 11 . . . . . . . . . 3 . . . . . . . Parts Scanalyzed . | . . . . . . . . . . . . . . . . . . . . . . Part Schematics Acquired . | . . . . . . . . . . . . . . . . . . . . . . Parts Damaged . | . . . . . . . . . . . . . . . . . . . . . . Bothacking | -11 -10 -9 -9 -9 -7 -6 -6 -5 -4 -4 -4 -4 -4 -3 -3 -2 -2 -2 -1 -1 -1 ------------ Run | Scr Mat Mat Sto Rec Fac Fac Ext Fac Fac Was Fac Arm Lab Res Tes Res Qua Sec Acc Com Ac0 Used RIF Installer . | . . . . . . . . . . . . . . . . . . . . . . Robots Hacked 29 | . . . . . . . . . . . . 1 . 1 6 1 1 10 1 8 . Non-combat . | . . . . . . . . . . . . . . . . . . . . . . Combat 29 | . . . . . . . . . . . . 1 . 1 6 1 1 10 1 8 . Robot Hacks Applied . | . . . . . . . . . . . . . . . . . . . . . . Relay Couplers Released . | . . . . . . . . . . . . . . . . . . . . . . Fabnet Peak Effective % 13 | . . . . . . . . . 3 3 3 3 3 13 13 13 13 13 3 3 3 Autooverrided 29 | . . . . . . . . . . . . 1 . 1 6 1 1 10 1 8 . Robots Rewired 12 | . . . . . . . 8 . . . . 3 . . 1 . . . . . . Allies Hacked 2 | . . . . . . . . . . . . . . . . . . 1 . 1 . Hacks Repelled . | . . . . . . . . . . . . . . . . . . . . . . Allies | -11 -10 -9 -9 -9 -7 -6 -6 -5 -4 -4 -4 -4 -4 -3 -3 -2 -2 -2 -1 -1 -1 -------- Run | Scr Mat Mat Sto Rec Fac Fac Ext Fac Fac Was Fac Arm Lab Res Tes Res Qua Sec Acc Com Ac0 Total Allies 149 | . . . 10 . . . 14 . . . . 6 . 2 10 1 2 10 43 51 . Largest Group 9 | . . . 9 . . . 6 . . . . 4 1 1 6 2 2 4 7 7 . Highest-Rated Group 349 | . . . 80 . . . 199 . . . . 151 10 47 349 165 114 251 98 246 . Highest-Rated Ally 178 | . . . 16 . . . 39 . . . . 47 10 47 143 135 69 178 69 89 . Total Orders 7 | . . . 2 . . . . . . . . 2 2 . . . 1 . . . . STAY 3 | . . . . . . . . . . . . 1 1 . . . 1 . . . . ROAM 1 | . . . 1 . . . . . . . . . . . . . . . . . . FOLLOW 2 | . . . . . . . . . . . . 1 1 . . . . . . . . EXPLORE 1 | . . . 1 . . . . . . . . . . . . . . . . . . Ally Attacks 213 | . . . 35 . . . 39 . . . . 6 . 2 35 8 4 12 40 32 . Total Damage 6183 | . . . 342 . . . 794 . . . . 117 . 57 1579 460 94 828 1106 806 . Kills 33 | . . . 4 . . . 4 . . . . 2 . . 14 2 1 2 2 2 . Allies Corrupted 2 | . . . . . . . . . . . . . . . . . . . . 2 . Allies Melted . | . . . . . . . . . . . . . . . . . . . . . . Intel | -11 -10 -9 -9 -9 -7 -6 -6 -5 -4 -4 -4 -4 -4 -3 -3 -2 -2 -2 -1 -1 -1 ------- Run | Scr Mat Mat Sto Rec Fac Fac Ext Fac Fac Was Fac Arm Lab Res Tes Res Qua Sec Acc Com Ac0 Robot Analysis Total 2 | . . . . . . . . . . . . 1 . . . . 1 . . . . Derelict Logs Recovered . | . . . . . . . . . . . . . . . . . . . . . . Drone Launches 16 | . . . 16 . . . . . . . . . . . . . . . . . . Drone Recoveries 2 | . . . 2 . . . . . . . . . . . . . . . . . . Exploration | -11 -10 -9 -9 -9 -7 -6 -6 -5 -4 -4 -4 -4 -4 -3 -3 -2 -2 -2 -1 -1 -1 ------------- Run | Scr Mat Mat Sto Rec Fac Fac Ext Fac Fac Was Fac Arm Lab Res Tes Res Qua Sec Acc Com Ac0 Turns Passed 8155 | 23 76 59 194 113 118 307 196 423 82 55 173 260 463 564 758 120 460 990 541 1203 977 Spaces Moved 15471 | 26 149 116 275 274 277 767 462 650 259 242 364 688 435 1158 1328 348 1032 1555 1067 2114 1885 Core 432 | 23 149 116 144 . . . . . . . . . . . . . . . . . . Treads 3 | 3 . . . . . . . . . . . . . . . . . . . . . Legs 5517 | . . . . . . . . . . . . . . . 1 . . 450 1067 2114 1885 Wheels . | . . . . . . . . . . . . . . . . . . . . . . Hover . | . . . . . . . . . . . . . . . . . . . . . . Flight 9361 | . . . 131 274 277 767 462 650 259 242 364 688 435 1158 1327 348 1032 947 . . . Fastest Speed 7 | 50 50 50 31 31 27 27 24 22 19 19 7 18 18 7 15 15 15 15 30 30 30 Average Speed 26 | 62 50 50 58 31 29 27 27 26 22 20 18 21 26 19 20 20 20 25 30 31 30 Slowest Speed 160 | 160 50 50 150 34 31 29 34 27 109 21 22 26 98 24 102 21 21 105 30 90 30 Overloaded Moves 100 | . . . . . . . . . . . 18 . . 33 8 2 3 36 . . . Propulsion Burnouts . | . . . . . . . . . . . . . . . . . . . . . . Robots Hopped 44 | . . . 3 . . 2 10 3 5 . 1 2 . 4 4 4 3 3 . . . Cave-ins Triggered 1 | . . . . . . . . . . . . . . . . . . . . 1 . Teleports 7 | . . . . . . . . . . . . . . . . . 1 2 1 1 2 Microwarps 10 | . . . . . . . . . . . . . . . . . . 10 . . . Exploration Rate (%) 48 | 3 44 22 60 77 8 27 56 17 10 95 11 44 93 41 93 13 76 72 46 65 86 Regions Visited 21 Branch Regions 10 Pre-discovered Areas 5 | . . . . 5 . . . . . . . . . . . . . . . . . Known Exits Taken 11 | . . 1 1 . . . . 1 . . 1 1 1 1 1 1 1 1 . . . Unknown Exits Taken 8 | 1 1 . . 1 1 1 1 . . . . . . . . . . . 1 1 . Scrap Searched . | . . . . . . . . . . . . . . . . . . . . . . Spaces Dug 163 | . . . . . 2 6 . 4 4 . 2 16 . 22 29 1 8 17 31 15 6 Terrain Destroyed 298 | . . . . . 2 6 . 4 4 . 2 16 . 50 29 1 8 19 77 41 39 Melee 101 | . . . . . 2 6 . 4 4 . 2 16 . 15 10 1 8 13 13 4 3 Projectile 103 | . . . . . . . . . . . . . . . . . . 6 24 37 36 AOE 94 | . . . . . . . . . . . . . . 35 19 . . . 40 . . Terrain Rammed . | . . . . . . . . . . . . . . . . . . . . . . Walls Destroyed . | . . . . . . . . . . . . . . . . . . . . . . Machines Disabled . | . . . . . . . . . . . . . . . . . . . . . . Actions | -11 -10 -9 -9 -9 -7 -6 -6 -5 -4 -4 -4 -4 -4 -3 -3 -2 -2 -2 -1 -1 -1 --------- Run | Scr Mat Mat Sto Rec Fac Fac Ext Fac Fac Was Fac Arm Lab Res Tes Res Qua Sec Acc Com Ac0 Total 18535 | 30 149 116 299 288 298 822 510 864 269 247 456 759 719 1412 1726 380 1217 1966 1258 2597 2153 Wait 1940 | . . . 5 1 . 1 5 166 6 . 77 23 197 159 199 25 118 454 120 341 43 Move 15216 | 25 148 115 268 273 276 762 443 643 249 241 361 683 434 1150 1319 339 1025 1400 1066 2112 1884 Hop 41 | . . . 3 . . 2 8 3 5 . 1 2 . 3 4 4 3 3 . . . Pick Up 101 | 1 1 1 1 3 3 4 1 8 2 1 1 3 17 5 12 . 10 12 . 10 5 Fast Attach 151 | 4 . . 7 5 4 9 4 9 . 2 5 . 7 11 26 . 3 22 9 12 12 Attach 55 | . . . 2 . 2 2 . 5 2 . 2 1 1 5 4 2 3 8 3 9 4 Detach 33 | . . . 1 . . 4 . . . 2 2 1 . 3 2 . 1 6 7 3 1 Swap 75 | . . . . . 4 3 1 . . . . 5 . 15 26 . 7 4 . 5 5 Drop 145 | . . . 3 . 2 9 . 10 . 1 2 1 18 6 33 . 11 10 4 21 14 Fire 84 | . . . . . . . . . . . . . . 4 11 . . 15 12 22 20 Melee 595 | . . . 2 6 7 26 4 20 5 . 5 25 45 46 72 6 32 32 37 60 165 Ram . | . . . . . . . . . . . . . . . . . . . . . . Kick . | . . . . . . . . . . . . . . . . . . . . . . Crush . | . . . . . . . . . . . . . . . . . . . . . . Escape Stasis 14 | . . . . . . . . . . . . . . 5 . 4 4 . . 1 . Rewire 78 | . . . . . . . 44 . . . . 15 . . 18 . . . . 1 . Trap . | . . . . . . . . . . . . . . . . . . . . . . Miscellaneous 7 | . . . 7 . . . . . . . . . . . . . . . . . . Route ------- -11/Scrapyard -10/Materials (discovered 2 exits: *Mat / [*Min]) -9/Materials (discovered 3 exits: [*Mat] / Min / *Sto) -9/Storage -9/Recycling -7/Factory -6/Factory -6/Extension (discovered 3 exits: *Fac x2 / [*Cet]) -5/Factory (discovered 4 exits: *Fac x4) -4/Factory (discovered 3 exits: Upp x2 / Arm) -4/Waste -4/Factory (discovered 3 exits: Upp x2 / *Arm) -4/Armory -4/Lab -3/Research (discovered 3 exits: *Res / *Tes x2) -3/Testing -2/Research (discovered 2 exits: *Qua x2) -2/Quarantine (discovered 2 exits: *Acc / *Sec) -2/Section 7 -1/Access (discovered 2 exits: [Sur] / *Com) -1/Command (discovered 3 exits: [*Sur x2] / *Ac0) -1/Access_0 Tau Ceti IV Orbit History --------- Turn | Location | Event 6 | -11/Scrapyard | Discovered new exit (range 15) 24 | -11/Scrapyard | Entered Materials 58 | -10/Materials | Discovered new exit (range 16) 92 | -10/Materials | Discovered new exit (range 16) 100 | -10/Materials | Entered another Materials area 100 | -9/Materials | Evolved 2 slots: Propulsion x2 114 | -9/Materials | Identified exit to Mines 114 | -9/Materials | Identified exit to Storage 158 | -9/Materials | Discovered new exit (range 9) 159 | -9/Materials | Entered Storage 293 | -9/Storage | Identified exit to Recycling 301 | -9/Storage | Build established: Mutant 320 | -9/Storage | Lost 4 parts (2n2w) 325 | -9/Storage | Assisted by bots powering up and referring to "LRC-V3" 352 | -9/Storage | Used back door to open Recycling access 353 | -9/Storage | Entered Recycling 366 | -9/Recycling | Spotter reported a threat 376 | -9/Recycling | Spotter reported a threat 380 | -9/Recycling | Spotter reported a threat 392 | -9/Recycling | Spotter reported a threat 393 | -9/Recycling | Spotter reported a threat 393 | -9/Recycling | Spotter reported a threat 407 | -9/Recycling | Spotter reported a threat 417 | -9/Recycling | Spotter reported a threat 419 | -9/Recycling | Spotter reported a threat 445 | -9/Recycling | Spotter reported a threat 446 | -9/Recycling | Spotter reported a threat 456 | -9/Recycling | Discovered new exit (range 15) 466 | -9/Recycling | Entered Factory 466 | -7/Factory | Evolved 4 slots: Propulsion x1, Utility x3 583 | -7/Factory | Discovered new exit (range 6) 584 | -7/Factory | Entered another Factory area 584 | -6/Factory | Evolved 2 slots: Power x1, Propulsion x1 658 | -6/Factory | Build established: Sprinter 877 | -6/Factory | Discovered new exit (range 13) 891 | -6/Factory | Entered Extension 903 | -6/Extension | Rescued a captive Derelict 907 | -6/Extension | Rescued a captive Derelict 957 | -6/Extension | Energy Cycler disabled 957 | -6/Extension | Rescued a captive Derelict 957 | -6/Extension | Rescued a captive Derelict 957 | -6/Extension | Rescued a captive Derelict 958 | -6/Extension | Rescued a captive Derelict 958 | -6/Extension | Rescued a captive Derelict 958 | -6/Extension | Rescued a captive Derelict 959 | -6/Extension | Rescued a captive Derelict 959 | -6/Extension | Rescued a captive Derelict 959 | -6/Extension | Rescued a captive Derelict 963 | -6/Extension | Rescued a captive Derelict 963 | -6/Extension | Rescued a captive Derelict 964 | -6/Extension | Rescued a captive Derelict 1049 | -6/Extension | Spotted B-75 Beast 1051 | -6/Extension | Spotted B-75 Beast 1051 | -6/Extension | Discovered new exit (range 15) 1053 | -6/Extension | Extracted ID and sensor layout for unrecognized location from A7's data core 1077 | -6/Extension | Discovered new exit (range 16) 1077 | -6/Extension | Discovered new exit (range 15) 1087 | -6/Extension | Entered Factory 1087 | -5/Factory | Evolved 2 slots: Utility x2 1098 | -5/Factory | Lost 3 parts (1p1n1u) 1150 | -5/Factory | Repaired Imp. Flight Unit 1203 | -5/Factory | Repaired Imp. Flight Unit 1254 | -5/Factory | Repaired Nuclear Pulse Thruster 1387 | -5/Factory | Build established: Hacker-Sprinter 1459 | -5/Factory | Discovered new exit (range 16) 1466 | -5/Factory | Identified exit to Factory 1510 | -5/Factory | Entered another Factory area 1510 | -4/Factory | Evolved 2 slots: Propulsion x1, Utility x1 1524 | -4/Factory | Identified exit to Upper Caves 1524 | -4/Factory | Identified exit to Armory 1592 | -4/Factory | Sucked down chute 1592 | -4/Factory | Entered Waste 1592 | -4/Waste | The area was eerily silent 1640 | -4/Waste | Discovered new exit (range 11) 1647 | -4/Waste | Entered Factory 1706 | -4/Factory | Repaired Broken Adv. Cloaking Device 1783 | -4/Factory | Repaired Broken Diametric Drive 1812 | -4/Factory | Repaired Hrd. Medium Armor Plating 1820 | -4/Factory | Entered Armory 1847 | -4/Armory | Central database locked down 2064 | -4/Armory | Discovered new exit (range 5) 2080 | -4/Armory | Identified exit to Lab 2080 | -4/Armory | Entered Lab 2080 | -4/Lab | Accompanied by 1 ally 2080 | -4/Lab | Discovered new exit (range 9) 2082 | -4/Lab | Identified exit to Research 2083 | -4/Lab | Hidden lab's door opened automatically 2083 | -4/Lab | Sensor layout match revealed 2083 | -4/Lab | Unable to decrypt terminal 2084 | -4/Lab | Gained access to the hidden lab's interior 2188 | -4/Lab | Found Alien Artifact 2204 | -4/Lab | Found Prototype Protection 2206 | -4/Lab | Found Prototype Hackware 2208 | -4/Lab | Found Prototype Energy Gun 2210 | -4/Lab | Found Prototype Energy Cannon 2376 | -4/Lab | Unable to decrypt terminal 2380 | -4/Lab | Identified Potential Cannon 2395 | -4/Lab | Found Alien Artifact 2399 | -4/Lab | Found Alien Artifact 2406 | -4/Lab | Found Alien Artifact 2441 | -4/Lab | Identified Hyp. EM Gauss Rifle 2520 | -4/Lab | Identified Core Reset Matrix 2520 | -4/Lab | Used Core Reset Matrix 2522 | -4/Lab | Discovered exit to Research (range 9) 2524 | -4/Lab | Sensed 3 artifacts in vicinity 2526 | -4/Lab | Installed Integrated Dissipator, increased core heat dissipation (+20) 2529 | -4/Lab | Installed Core Expander, added new Weapon slot 2543 | -4/Lab | Entered Research 2543 | -3/Research | Spotted B-86 Titan 2543 | -3/Research | Evolved 2 slots: Propulsion x1, Utility x1 2544 | -3/Research | Identified Quantum Router 2569 | -3/Research | Discovered new exit (range 13) 2588 | -3/Research | Identified exit to Research 2675 | -3/Research | System corruption reached 10% 2753 | -3/Research | Spotted B-86 Titan 2876 | -3/Research | Identified exit to Testing 2908 | -3/Research | Imp. Hacking Suite fried by hacking feedback 3029 | -3/Research | Repaired Enh. Nuclear Core 3107 | -3/Research | Entered Testing 3192 | -3/Testing | Found Prototype Slashing Weapon 3192 | -3/Testing | Identified Molecular Scythe 3195 | -3/Testing | Found Molecular Scythe 3197 | -3/Testing | Found Prototype Device 3197 | -3/Testing | Identified Femtoactuators 3431 | -3/Testing | Spotted PH-RZ4CW0XIIT 3450 | -3/Testing | Rewired PH-RZ4CW0XIIT 3487 | -3/Testing | Found Prototype Protection 3487 | -3/Testing | Identified Centrium Heavy Armor Plating 3540 | -3/Testing | Found Prototype Hackware 3725 | -3/Testing | Found Prototype Leg 3725 | -3/Testing | Identified Myomer Exoskeleton 3790 | -3/Testing | Local machine network offline 3821 | -3/Testing | Found Prototype Processor 3821 | -3/Testing | Identified Exp. Targeting Computer 3865 | -3/Testing | Entered Research 3865 | -2/Research | Accompanied by 1 ally 3865 | -2/Research | Evolved 2 slots: Utility x2 3865 | -2/Research | Identified Ghost Barrier 3899 | -2/Research | Identified exit to Quarantine 3985 | -2/Research | Entered Quarantine 3986 | -2/Quarantine | Detected hypermatrix surge 3986 | -2/Quarantine | Sensed 15 artifacts in vicinity 4015 | -2/Quarantine | Found Sigix Broadsword 4031 | -2/Quarantine | Found Core Stripper 4099 | -2/Quarantine | Found Subatomic Replicator 4154 | -2/Quarantine | Found Core Cannon 4159 | -2/Quarantine | Discovered new exit (range 10) 4174 | -2/Quarantine | Build established: Wizard-Ninja 4198 | -2/Quarantine | Found Transdimensional Reconstructor 4203 | -2/Quarantine | Found Dimensional Node Initializer 4204 | -2/Quarantine | Found Dimensional Node Initializer 4217 | -2/Quarantine | Initialized slip node 4231 | -2/Quarantine | Found Transdimensional Reconstructor 4270 | -2/Quarantine | Found Hpw. Transdimensional Reconstructor 4285 | -2/Quarantine | Met incapacitated Sigix Warrior 4285 | -2/Quarantine | Lockdown squad dispatched 4286 | -2/Quarantine | Acquired the access code to the Sigix quarantine chamber 4330 | -2/Quarantine | Warped through subspace to slip node 4347 | -2/Quarantine | Spotted Fortress 4364 | -2/Quarantine | Discovered new exit (range 5) 4365 | -2/Quarantine | Identified exit to Section 7 4445 | -2/Quarantine | Entered Section 7 4446 | -2/Section 7 | Sensed 21 artifacts in vicinity 4460 | -2/Section 7 | Identified exit to Access 4465 | -2/Section 7 | Spotted B-90 Cyclops 4523 | -2/Section 7 | Spotted S7 Guard 4611 | -2/Section 7 | Found Integrated Mediator 4611 | -2/Section 7 | Installed Integrated Mediator, increased core attachment efficiency. 4625 | -2/Section 7 | Found Integrated Mediator 4625 | -2/Section 7 | Installed Integrated Mediator, increased core attachment efficiency. 4944 | -2/Section 7 | Warped through subspace 4952 | -2/Section 7 | Initialized slip node 4957 | -2/Section 7 | Found Integrated Dissipator 4957 | -2/Section 7 | Installed Integrated Dissipator, increased core heat dissipation (+20) 4986 | -2/Section 7 | Found Microwarp Drive 5013 | -2/Section 7 | Spotted Executioner 5013 | -2/Section 7 | Spotted Executioner 5016 | -2/Section 7 | Spotted B-99 Colossus 5046 | -2/Section 7 | Integrated with Sigix Exoskeleton 5047 | -2/Section 7 | Sigix Warrior commented on Exoskeleton integration 5093 | -2/Section 7 | Used Subatomic Replicator to replicate Core Expander 5095 | -2/Section 7 | Found Core Expander 5095 | -2/Section 7 | Installed Core Expander, added new Weapon slot 5097 | -2/Section 7 | Found Core Expander 5097 | -2/Section 7 | Installed Core Expander, added new Power slot 5098 | -2/Section 7 | Found Core Expander 5098 | -2/Section 7 | Installed Core Expander, added new Weapon slot 5101 | -2/Section 7 | Installed Core Expander, added new Power slot 5113 | -2/Section 7 | Found LRC Energy Well 5113 | -2/Section 7 | Installed LRC Energy Well, increased energy storage capacity (+250) 5129 | -2/Section 7 | Found Integrated Dissipator 5129 | -2/Section 7 | Installed Integrated Dissipator, increased core heat dissipation (+20) 5313 | -2/Section 7 | Spotted Executioner 5313 | -2/Section 7 | Spotted Executioner 5334 | -2/Section 7 | Destroyed Executioner 5334 | -2/Section 7 | Destroyed Executioner 5337 | -2/Section 7 | Found Prototype Processor 5341 | -2/Section 7 | Found Exp. Targeting Computer 5345 | -2/Section 7 | Found Prototype Processor 5345 | -2/Section 7 | Identified Exp. Core Analyzer (x2) 5350 | -2/Section 7 | Spotted Striker 5350 | -2/Section 7 | Spotted Striker 5367 | -2/Section 7 | Build established: Alien-Sigix 5374 | -2/Section 7 | Core integrity fell below 50% 5376 | -2/Section 7 | Destroyed Striker 5379 | -2/Section 7 | Destroyed Striker 5388 | -2/Section 7 | Found Sigix Sheargun 5389 | -2/Section 7 | Found Sigix Sheargun 5409 | -2/Section 7 | Spotted Striker 5413 | -2/Section 7 | Found Matter Drive 5423 | -2/Section 7 | Found Transdimensional Reconstructor 5425 | -2/Section 7 | Warped through subspace to slip node 5427 | -2/Section 7 | Local machine network offline 5428 | -2/Section 7 | Found Hpw. Transdimensional Reconstructor 5429 | -2/Section 7 | Spotted Investigator 5435 | -2/Section 7 | Garrison activated, responded to threat 5435 | -2/Section 7 | Entered Access 5435 | -1/Access | Evolved 2 slots: Utility x2 5440 | -1/Access | Emitted hypermatrix ping 5445 | -1/Access | Assembled emerged from beneath the floor 5463 | -1/Access | Warped through subspace 5501 | -1/Access | Assembled emerged from beneath the floor 5557 | -1/Access | Assembled emerged from beneath the floor 5582 | -1/Access | Assembled emerged from beneath the floor 5694 | -1/Access | Spotted B-99 Colossus 5707 | -1/Access | Assembled emerged from beneath the floor 5727 | -1/Access | Discovered new exit (range 16) 5879 | -1/Access | Local machine network offline 5932 | -1/Access | Found Prototype Processor 5932 | -1/Access | Identified Exp. Melee Analysis Suite 5951 | -1/Access | Discovered new exit (range 18) 5953 | -1/Access | Assembled emerged from beneath the floor 5976 | -1/Access | Entered Command 5981 | -1/Command | Emitted hypermatrix ping 5986 | -1/Command | Assembled emerged from beneath the floor 6019 | -1/Command | Assembled emerged from beneath the floor 6117 | -1/Command | Spotted B-99 Colossus 6146 | -1/Command | Spotted Combat Programmer 6170 | -1/Command | Met MAIN.C 6170 | -1/Command | 0b10 Conduit disabled 6208 | -1/Command | MAIN.C's shell transforms into a squad of autonomous robots 6208 | -1/Command | Destroyed MAIN.C Shell 6208 | -1/Command | Spotted M Shell/Def 6208 | -1/Command | Spotted M Shell/Atk 6208 | -1/Command | Spotted M Shell/Def 6208 | -1/Command | Spotted M Shell/Atk 6208 | -1/Command | Spotted M Shell/Atk 6208 | -1/Command | Spotted M Shell/Def 6208 | -1/Command | Spotted M Shell/Atk 6208 | -1/Command | Spotted M Shell/Def 6210 | -1/Command | MAIN.C activated Command garrisons 6222 | -1/Command | Discovered new exit (range 18) 6233 | -1/Command | Found Prototype Device 6233 | -1/Command | Identified Exp. Cloaking Device 6236 | -1/Command | Found Exp. Core Analyzer 6242 | -1/Command | Sigix Exoskeleton integrity reduced to 80% 6253 | -1/Command | Destroyed MAIN.C 6256 | -1/Command | Discovered new exit (range 23) 6256 | -1/Command | Discovered new exit (range 105) 6256 | -1/Command | Extracted map data and part IDs from MAIN.C's data core 6259 | -1/Command | Found Exp. System Purifier 6283 | -1/Command | Destroyed M Shell/Atk 6287 | -1/Command | Destroyed M Shell/Atk 6296 | -1/Command | Found Zero-point Reactor 6299 | -1/Command | Found Exp. Weapon Cycler 6320 | -1/Command | Destroyed M Shell/Atk 6328 | -1/Command | Destroyed M Shell/Def 6441 | -1/Command | Destroyed M Shell/Def 6703 | -1/Command | Spotted B-99 Colossus 6715 | -1/Command | Assembled emerged from beneath the floor 6739 | -1/Command | Assembled emerged from beneath the floor 6766 | -1/Command | Assembled emerged from beneath the floor 6841 | -1/Command | Assembled emerged from beneath the floor 6921 | -1/Command | Found Corrupted AEGIS Remote Shield 7022 | -1/Command | Crushed by falling debris 7175 | -1/Command | Warped through subspace to slip node 7175 | -1/Command | Discovered new exit (range 4) 7179 | -1/Command | Entered Access_0 7180 | -1/Access_0 | Sensed 2 artifacts in vicinity 7180 | -1/Access_0 | Met Architect 7182 | -1/Access_0 | Architect warped through subspace 7191 | -1/Access_0 | Destroyed A8 7199 | -1/Access_0 | Core integrity fell below 50% 7213 | -1/Access_0 | Architect warped through subspace 7217 | -1/Access_0 | Subspace Access Node disabled 7228 | -1/Access_0 | Subspace Access Node disabled 7253 | -1/Access_0 | A6 warped into view 7262 | -1/Access_0 | Subspace Access Node disabled 7271 | -1/Access_0 | Architect warped through subspace 7286 | -1/Access_0 | Destroyed A6 7302 | -1/Access_0 | Architect warped through subspace 7327 | -1/Access_0 | Destroyed A2 7329 | -1/Access_0 | Extracted Singularity Gate Test 138-C access codes from A2's data core 7351 | -1/Access_0 | A5 warped into view 7351 | -1/Access_0 | Singularity Gate disabled 7363 | -1/Access_0 | Destroyed Architect 7367 | -1/Access_0 | Singularity Gate disabled 7369 | -1/Access_0 | Destroyed A5 7374 | -1/Access_0 | Extracted unknown sensor trigger ID from Architect's data core 7480 | -1/Access_0 | Found Hpw. Transdimensional Reconstructor 7497 | -1/Access_0 | Destroyed 11 combat bots 7593 | -1/Access_0 | A4 warped into view 7613 | -1/Access_0 | Sigix Exoskeleton integrity reduced to 60% 7628 | -1/Access_0 | Destroyed A4 7682 | -1/Access_0 | Core integrity fell below 20% 7697 | -1/Access_0 | Subspace Access Node disabled 7843 | -1/Access_0 | A3 warped into view 7848 | -1/Access_0 | Found Exp. Actuator Array 7866 | -1/Access_0 | Destroyed A3 7869 | -1/Access_0 | Found Prototype Device 7869 | -1/Access_0 | Identified ST Field Compressor 7877 | -1/Access_0 | Found Prototype Ballistic Gun 7877 | -1/Access_0 | Identified A3's Sniper Rifle 7904 | -1/Access_0 | Sigix Exoskeleton integrity reduced to 40% 7933 | -1/Access_0 | Found Sigix Corpse 8151 | -1/Access_0 | Warped through subspace to slip node 8151 | -1/Access_0 | Discovered new exit (range 8) 8152 | -1/Access_0 | Found Hpw. Transdimensional Reconstructor 8152 | -1/Access_0 | Warped through subspace to slip node 8156 | *** | Destroyed 0B10! Last Messages --------------- 08072_ HV Slug penetrates Earth. 08079_ HV Slug penetrates Wall. 08079_ Penetrated by HV Slug. 08080_ HV Slug penetrates Wall. 08082_ Enhanced Hunter destroyed. 08082_ HV Slug penetrates Wall. 08082_ HV Slug penetrates Earth. 08083_ Acquired 3 matter. 08084_ Destroyed Exp. Phase Shifter. 08084_ Penetrated by HV Slug. 08084_ Knocked back. 08086_ Penetrated by HV Slug. 08086_ HV Slug penetrates Wall. 08087_ Destroyed Hyp. Linear Accelerator. 08087_ Enhanced Hunter destroyed. 08148_ Workstation disabled. 08151_ Warped through subspace, drawn to slip node. 08151_ EXIT=FOUND 08152_ Acquired Hpw. Transdimensional Reconstructor. 08152_ Warped through subspace, drawn to slip node. Map ----- +----------------------------------------------------+ | | | | | | | | | | | | | | | | | | | | | | | | | | | | | | | | | ???????????###########################???????????? | | ??????????#############################??????????? | | ??????????#############################??????????? | | ?????????###############################?????????? | | ????????#################################????????? | | ????????#################################????????? | | ????????#################################????????? | | ???????################## ################???????? | | ???????################# ###############???????? | | ???????################# X ###############???????? | | ???????################# ###############???????? | | ???????################ ###############???????? | | ??????################# #################??????? | | ???????################# ###############???????? | | ???????################ ###############???????? | | ???????################ ################???????? | | ??????################# < ################??????? | | ???????################ ################???????? | | ???????################# ################???????? | | ???????###################################???????? | | ???????###################################???????? | | ???????###################################???????? | | ????????#################################????????? | | ????????#################################????????? | | ????????#################################????????? | | ?????????###############################?????????? | | ??????????#############################??????????? | | ??????????#############################??????????? | | ???????????###########################???????????? | | ????????????#########################????????????? | | ?????????????#######################?????????????? | | ###????????????###################???????????????? | | ####????????????#################????????????????? | | ######?????????????###########???????????????????? | +----------------------------------------------------+ Best States ------------- Heat Dissipation 187 Energy Generation 90 Energy Capacity 1190 Matter Stores 300 Matter Capacity 300 Sight Range 23 Robot Scan Range 16 Terrain Scan Density 210 Jamming Range 14 Cloak Strength 4 Armor Coverage 600 Resistance: KI 50 Resistance: TH 50 Resistance: EX 50 Resistance: EM 50 Resistance: I 50 Resistance: S 50 Resistance: P 50 Core Shielding 40 Weapon Shielding 66 Weapon Cycling 30 Melee Speed Boost 50 Evasion (%) 76 Targeting Accuracy 12 Core Analysis 12 Armor Integrity Analysis 40 Recoil Reduction 2 Offensive Hacking 30 Defensive Hacking 55 Authchip Count 3 Item Schematics ----------------- Adv. Energy Well | -3/Testing | Archive Hvy. Gatling Laser | -3/Testing | Archive Plasma Sword | -3/Testing | Archive Centrium Heavy Armor Plating | -3/Testing | Archive Adv. Kinecellerator | -3/Testing | Archive Exp. Cooling System | -3/Testing | Archive Mni. Smartbomb Launcher | -3/Testing | Archive Hdn. Centrium Wheel | -3/Testing | Archive Enh. Coil Gun | -3/Testing | Archive Exp. Thermal Generator | -3/Testing | Archive Centrium Heavy Treads | -3/Testing | Archive Hvy. Tesla Rifle | -3/Testing | Archive Prc. Phase Gun | -3/Testing | Archive Helical Railgun | -3/Testing | Archive Exp. Heat Sink | -3/Testing | Archive Com. Mass Driver | -3/Testing | Archive Neutron Missile Launcher | -3/Testing | Archive Lgt. Antimatter Cannon | -3/Testing | Archive Impact Mace | -3/Testing | Archive Imp. Particle Accelerator | -3/Testing | Archive Exp. Signal Interpreter | -3/Testing | Archive Hvy. Neutron Cannon | -3/Testing | Archive Centrium Light Armor Plating | -3/Testing | Archive Adv. KE Penetrator | -2/Quarantine | Archive Hvy. Hardcell Cannon | -2/Quarantine | Archive Energy Mantle | -2/Quarantine | Archive Cld. Field Propulsion Drive | -2/Quarantine | Archive Coolant Network | -2/Quarantine | Archive Cld. Phase Gun | -2/Quarantine | Archive Adv. Plasma Rifle | -2/Quarantine | Archive Exp. ECM Suite | -2/Quarantine | Archive Exp. Power Amplifier | -2/Quarantine | Archive Gravity Flail | -2/Quarantine | Archive Tesla Bomb Launcher | -2/Section 7 | Archive Exp. EM Disruption Field | -2/Section 7 | Archive Exp. Shield Generator | -2/Section 7 | Archive Prc. Matter Filter | -2/Section 7 | Archive Imp. Matter Neutralizer | -2/Section 7 | Archive Exp. Field Recycling Unit | -2/Section 7 | Archive Robot Schematics ------------------ G-67 Veteran | -3/Testing | Archive K-01 Serf | -3/Testing | Archive X-72 Disruptor | -3/Testing | Archive T-07 Excavator | -3/Testing | Archive L-61 Swordsman | -3/Testing | Archive S-43 Plague | -3/Testing | Archive Y-72 Warden | -2/Quarantine | Archive O-32 Director | -2/Quarantine | Archive H-88 Terminator | -2/Quarantine | Archive A-27 Freighter | -2/Quarantine | Archive R-10 Processor | -2/Quarantine | Archive Fabricated ------------ Nothing Alien Tech Used ----------------- Core Reset Matrix Integrated Dissipator Core Expander Sigix Broadsword Dimensional Node Initializer Transdimensional Reconstructor Integrated Mediator Microwarp Drive Sigix Exoskeleton Sigix Sheargun Subatomic Replicator LRC Energy Well Matter Drive High-powered Transdimensional Reconstructor Core Cannon Achievements -------------- None Challenges ------------ None Game ------ Seed LongswordGravitySystem Manual? 0 Play Time 04:05:36 Cumulative 369.8 hours Start 2022.08.17 @ 07:56:21 End 2022.08.17 @ 12:14:33 Sessions 1 Manual Loads 0 Difficulty Rogue Special Mode None Game No. 128 Rogue 113 Adventurer 15 Explorer 0 Win Type 3 Total 22 Types 6/1/7/2/2/0/3/1/0 Lore% 93 Gallery% 93 Achievement% 82 Wizard Run 0 Options --------- ASCII 0 Keyboard 0 Movement Numpad Keybinds 0 Fullscreen 1 Font 18/SmallcapsGlow Map View 76x50 Tactical HUD 1 Map Filters NONE Filters NONE Steam 1 RUN: fb1161c2-d1af-4f67-86ee-3d98cbe233b8